fUST/lending_fUST_20251129
["ID","MTS","AMOUNT","RATE_DAILY","PERIOD"]
[395052769,1764378646776,-500.0,0.00014716,2]
[395052770,1764378646785,-661.43,0.00014716,2]
[395052771,1764378646801,-500.0,0.00014716,2]
[395052772,1764378646810,-500.0,0.00014716,2]
[395052773,1764378646819,-978.99,0.00014716,2]
[395052774,1764378646828,-1022.02,0.00014716,2]
[395052775,1764378646845,-867.18,0.00014716,2]
[395052776,1764378646854,-1686.8,0.00014716,2]
[395052777,1764378646864,-991.35,0.00014716,2]
[395052778,1764378646874,-500.0,0.00014716,2]
[395052779,1764378646884,-566.82,0.00014716,2]
[395052780,1764378646894,-2134.08,0.00014716,2]
[395052781,1764378646903,-500.0,0.00014716,2]
[395052782,1764378646912,-543.24,0.00014716,2]
[395052783,1764378646922,-511.33,0.00014716,2]
[395052784,1764378646931,-552.65990536,0.00014716,2]
[395052785,1764378646940,-500.0,0.00014716,2]
[395052786,1764378646950,-500.0,0.00014716,2]
[395052787,1764378646963,-500.0,0.00014716,2]
[395052788,1764378646972,-500.0,0.00014716,2]
[395052789,1764378646981,-500.0,0.00014716,2]
[395052790,1764378646992,-500.0,0.00014716,2]
[395052791,1764378647003,-4790.34,0.00014716,2]
[395052792,1764378647013,-521.33,0.00014716,2]
[395052793,1764378647022,-555.56,0.00014716,2]
[395052794,1764378647032,-1763.09,0.00014716,2]
[395052795,1764378647044,-500.0,0.00014716,2]
[395052796,1764378647053,-500.0,0.00014716,2]
[395052797,1764378647062,-500.0,0.00014716,2]
[395052798,1764378647071,-194.28858715,0.00014716,2]
[395052799,1764378647092,-1191.71141285,0.00014716,2]
[395052800,1764378647100,-1116.76,0.00014716,2]
[395052801,1764378647110,-500.0,0.00014716,2]
[395052802,1764378647119,-500.0,0.00014716,2]
[395052803,1764378647129,-500.0,0.00014716,2]
[395052804,1764378647138,-929.75,0.00014716,2]
[395052805,1764378647147,-500.0,0.00014716,2]
[395052806,1764378647156,-500.0,0.00014716,2]
[395052807,1764378647166,-196.96031051,0.00014716,2]
[395052808,1764378647175,-500.0,0.00014716,2]
[395052809,1764378647185,-500.0,0.00014716,2]
[395052810,1764378647194,-500.0,0.00014716,2]
[395052811,1764378647203,-3006.88,0.00014716,2]
[395052812,1764378647212,-201.20882093,0.00014716,2]
[395052813,1764378647222,-630.14,0.00014716,2]
[395052814,1764378647231,-832.79,0.00014716,2]
[395052815,1764378647241,-500.0,0.00014716,2]
[395052816,1764378647250,-1604.37,0.00014716,2]
[395052817,1764378647259,-586.28,0.00014716,2]
[395052818,1764378647269,-632.87,0.00014716,2]
[395052819,1764378647278,-500.0,0.00014716,2]
[395052820,1764378647287,-519.86,0.00014716,2]
[395052821,1764378647296,-500.0,0.00014716,2]
[395052822,1764378647305,-500.0,0.00014716,2]
[395052823,1764378647313,-500.0,0.00014716,2]
[395052824,1764378647322,-500.0,0.00014716,2]
[395052825,1764378647331,-500.0,0.00014716,2]
[395052826,1764378647340,-500.0,0.00014716,2]
[395052827,1764378647349,-2032.64,0.00014717,2]
[395052828,1764378647359,-544.9,0.00014717,2]
[395052829,1764378647368,-500.0,0.00014717,2]
[395052830,1764378647377,-727.34,0.00014717,2]
[395052831,1764378647386,-1043.92,0.00014717,2]
[395052832,1764378647395,-2586.27,0.00014717,2]
[395052833,1764378647405,-500.0,0.00014717,2]
[395052834,1764378647414,-507.27,0.00014717,2]
[395052835,1764378647423,-1599.63,0.00014717,2]
[395052836,1764378647432,-2567.39,0.00014717,2]
[395052837,1764378647441,-880.86,0.00014717,2]
[395052838,1764378647451,-2691.59,0.00014717,2]
[395052839,1764378647460,-500.0,0.00014717,2]
[395052840,1764378647469,-500.0,0.00014717,2]
[395052841,1764378647478,-923.6,0.00014717,2]
[395052842,1764378647487,-2830.89,0.00014717,2]
[395052843,1764378647496,-500.0,0.00014726,2]
[395052844,1764378647505,-1879.78,0.00014794,2]
[395052845,1764378647514,-500.0,0.00014794,2]
[395052846,1764378647523,-373.68,0.00014794,2]
[395052847,1764378647532,-774.53,0.00014794,2]
[395052848,1764378647540,-1101.68,0.00014794,2]
[395052849,1764378647549,-500.0,0.00014794,2]
[395052850,1764378647558,-2809.09,0.00014794,2]
[395052851,1764378647567,-500.0,0.00014794,2]
[395052852,1764378647576,-643.87,0.00014794,2]
[395052853,1764378647585,-769.9,0.00014794,2]
[395052854,1764378647595,-2592.08,0.00014794,2]
[395052855,1764378647604,-1399.92,0.00014794,2]
[395052856,1764378647613,-1840.63,0.00014794,2]
[395052857,1764378647622,-500.0,0.00014794,2]
[395052858,1764378647632,-2314.46,0.00014794,2]
[395052859,1764378647641,-4085.32,0.00014794,2]
[395052860,1764378647650,-1061.31,0.00014794,2]
[395052861,1764378647659,-500.0,0.00014794,2]
[395052862,1764378647669,-500.0,0.00014794,2]
[395052863,1764378647678,-1816.47,0.00014794,2]
[395052864,1764378647687,-500.0,0.00014794,2]
[395052865,1764378647696,-500.0,0.00014794,2]
[395052866,1764378647705,-5765.87,0.00014794,2]
[395052867,1764378647714,-523.48,0.00014794,2]
[395052868,1764378647723,-849.63,0.00014794,2]
[395052869,1764378647732,-807.08,0.00014794,2]
[395052870,1764378647742,-5915.6,0.00014794,2]
[395052871,1764378647751,-1538.47,0.00014794,2]
[395052872,1764378647760,-500.0,0.00014794,2]
[395052873,1764378647769,-1794.85,0.00014794,2]
[395052874,1764378647778,-1700.81,0.00014794,2]
[395052875,1764378647787,-651.36,0.00014794,2]
[395052876,1764378647796,-500.0,0.00014794,2]
[395052877,1764378647805,-1730.66,0.00014794,2]
[395052878,1764378647814,-500.0,0.00014794,2]
[395052879,1764378647823,-628.56,0.00014794,2]
[395052880,1764378647832,-818.28,0.00014794,2]
[395052881,1764378647841,-500.0,0.000148,2]
[395052882,1764378647851,-500.0,0.000148,2]
[395052883,1764378647860,-500.0,0.000148,2]
[395052884,1764378647869,-500.0,0.000148,2]
[395052885,1764378647879,-1022.63016215,0.000148,2]
[395052886,1764378647888,-151.0,0.000148,2]
[395052887,1764378647897,-173.06383424,0.00014801,2]
[395052888,1764378647907,-500.0,0.00014801,2]
[395052889,1764378647917,-500.0,0.00014801,2]
[395052890,1764378647988,-500.0,0.00014801,2]
[395052891,1764378647998,-10727.2,0.00014801,2]
[395052892,1764378648007,-1182.8,0.00014801,2]
[395052893,1764378648016,-1999.97,0.00014801,2]
[395052894,1764378648025,-2209.04,0.00014801,2]
[395052895,1764378648034,-500.0,0.00014802,2]
[395052896,1764378648043,-519.47670224,0.00014817,2]
[395052897,1764378648052,-500.0,0.00014853,2]
[395052898,1764378648061,-500.0,0.00014853,2]
[395052899,1764378648070,-500.0,0.00014873,2]
[395052900,1764378648079,-500.0,0.00014873,2]
[395052901,1764378648088,-266.37466217,0.00014873,2]
[395052902,1764378648096,-500.0,0.00014873,2]
[395052903,1764378648105,-415.31771954,0.00014873,2]
[395052904,1764378648114,-500.0,0.00014873,2]
[395052905,1764378648123,-157.54845593,0.00014873,2]
[395052906,1764378648133,-500.0,0.00014873,2]
[395052907,1764378648144,-500.0,0.00014873,2]
[395052908,1764378648153,-300.0,0.00014873,2]
[395052909,1764378648162,-500.0,0.00014873,2]
[395052910,1764378648172,-100000.0,0.00014882,2]
[395052911,1764378648181,-512.92,0.000149,2]
[395052912,1764378648191,-641.16,0.000149,2]
[395052913,1764378648200,-500.0,0.000149,2]
[395052914,1764378648209,-271.19939466,0.000149,2]
[395052915,1764378648218,-1037.84,0.000149,2]
[395052916,1764378648228,-500.0,0.000149,2]
[395052917,1764378648237,-500.0,0.000149,2]
[395052918,1764378648246,-500.0,0.000149,2]
[395052919,1764378648255,-500.0,0.000149,2]
[395052920,1764378648264,-500.0,0.000149,2]
[395052921,1764378648273,-500.0,0.000149,2]
[395052922,1764378648282,-500.0,0.000149,2]
[395052923,1764378648292,-1333.63,0.000149,2]
[395052924,1764378648300,-500.0,0.000149,2]
[395052925,1764378648309,-500.0,0.000149,2]
[395052926,1764378648319,-500.0,0.000149,2]
[395052927,1764378648328,-500.0,0.000149,2]
[395052928,1764378648338,-500.0,0.000149,2]
[395052929,1764378648347,-500.0,0.000149,2]
[395052930,1764378648356,-389.39058057,0.000149,2]
[395052931,1764378648365,-500.0,0.000149,2]
[395052932,1764378648375,-500.0,0.000149,2]
[395052933,1764378648384,-500.0,0.000149,2]
[395052934,1764378648393,-1267.24,0.000149,2]
[395052935,1764378648402,-943.76,0.000149,2]
[395052936,1764378648410,-500.0,0.000149,2]
[395052937,1764378648420,-500.0,0.000149,2]
[395052938,1764378648429,-500.0,0.000149,2]
[395052939,1764378648438,-500.0,0.000149,2]
[395052940,1764378648447,-244.43291996,0.000149,2]
[395052941,1764378648456,-642.78,0.000149,2]
[395052942,1764378648466,-500.0,0.000149,2]
[395052943,1764378648475,-610.77,0.000149,2]
[395052944,1764378648484,-1612.79,0.000149,2]
[395052945,1764378648494,-682.48,0.000149,2]
[395052946,1764378648503,-500.0,0.000149,2]
[395052947,1764378648512,-629.22,0.000149,2]
[395052948,1764378648521,-500.0,0.000149,2]
[395052949,1764378648531,-500.0,0.000149,2]
[395052950,1764378648540,-500.0,0.000149,2]
[395052951,1764378648549,-624.36,0.000149,2]
[395052952,1764378648558,-500.0,0.000149,2]
[395052953,1764378648567,-1271.27,0.000149,2]
[395052954,1764378648576,-500.0,0.000149,2]
[395052955,1764378648585,-500.0,0.000149,2]
[395052956,1764378648594,-500.0,0.000149,2]
[395052957,1764378648603,-546.63,0.000149,2]
[395052958,1764378648613,-500.0,0.000149,2]
[395052959,1764378648623,-619.02,0.00014901,2]
[395052960,1764378648632,-500.0,0.00014901,2]
[395052961,1764378648642,-552.65,0.00014901,2]
[395052962,1764378648651,-500.0,0.00014901,2]
[395052963,1764378648660,-500.0,0.00014901,2]
[395052964,1764378648669,-500.0,0.00014901,2]
[395052965,1764378648678,-500.0,0.00014901,2]
[395052966,1764378648688,-500.0,0.00014901,2]
[395052967,1764378648697,-500.0,0.00014901,2]
[395052968,1764378648710,-500.0,0.00014901,2]
[395052969,1764378648722,-500.0,0.00014901,2]
[395052970,1764378648731,-500.0,0.00014901,2]
[395052971,1764378648740,-500.0,0.00014901,2]
[395052972,1764378648750,-500.0,0.00014901,2]
[395052973,1764378648759,-576.6120192,0.00014901,2]
[395052974,1764378648768,-500.0,0.00014901,2]
[395052975,1764378648777,-500.0,0.00014901,2]
[395052976,1764378648786,-502.5270329,0.00014901,2]
[395052977,1764378648795,-625.43860423,0.00014901,2]
[395052978,1764378648804,-500.0,0.00014901,2]
[395052979,1764378648813,-500.0,0.00014901,2]
[395052980,1764378648823,-500.0,0.00014901,2]
[395052981,1764378648832,-500.0,0.00014901,2]
[395052982,1764378648841,-500.0,0.00014901,2]
[395052983,1764378648850,-500.0,0.00014901,2]
[395052984,1764378648859,-500.0,0.00014901,2]
[395052985,1764378648868,-500.0,0.00014901,2]
[395052986,1764378648878,-500.0,0.00014901,2]
[395052987,1764378648887,-500.0,0.00014901,2]
[395052988,1764378648896,-500.0,0.00014901,2]
[395052989,1764378648905,-500.0,0.00014901,2]
[395052990,1764378648916,-500.0,0.00014901,2]
[395052991,1764378648924,-500.0,0.00014901,2]
[395052992,1764378648934,-553.92,0.00014901,2]
[395052993,1764378648943,-557.63,0.00014901,2]
[395052994,1764378648953,-500.0,0.00014901,2]
[395052995,1764378648965,-1255.69,0.00014901,2]
[395052996,1764378648974,-500.0,0.00014901,2]
[395052997,1764378648983,-500.0,0.00014901,2]
[395052998,1764378648993,-500.0,0.00014901,2]
[395052999,1764378649003,-500.0,0.00014901,2]
[395053000,1764378649012,-500.0,0.00014901,2]
[395053001,1764378649021,-500.0,0.00014901,2]
[395053002,1764378649030,-912.02,0.00014901,2]
[395053003,1764378649040,-500.0,0.00014901,2]
[395053004,1764378649050,-500.0,0.00014901,2]
[395053005,1764378649059,-500.0,0.00014901,2]
[395053006,1764378649068,-500.0,0.00014901,2]
[395053007,1764378649078,-500.0,0.00014901,2]
[395053008,1764378649087,-500.0,0.00014901,2]
[395053009,1764378649096,-500.0,0.00014901,2]
[395053010,1764378649105,-500.0,0.00014901,2]
[395053011,1764378649114,-500.0,0.00014901,2]
[395053012,1764378649122,-500.0,0.00014901,2]
[395053013,1764378649131,-500.0,0.00014901,2]
[395053014,1764378649141,-500.0,0.00014901,2]
[395053015,1764378649150,-500.0,0.00014901,2]
[395053016,1764378649159,-500.0,0.00014901,2]
[395053017,1764378649169,-500.0,0.00014901,2]
[395053018,1764378649178,-500.0,0.00014901,2]
[395053019,1764378649187,-500.0,0.00014901,2]
[395053020,1764378649195,-500.0,0.00014901,2]
[395053021,1764378649205,-500.0,0.00014901,2]
[395053022,1764378649213,-500.0,0.00014901,2]
[395053023,1764378649222,-500.0,0.00014901,2]
[395053024,1764378649232,-500.0,0.00014901,2]
[395053025,1764378649241,-500.0,0.00014901,2]
[395053026,1764378649250,-500.0,0.00014901,2]
[395053027,1764378649259,-500.0,0.00014901,2]
[395053028,1764378649268,-500.0,0.00014901,2]
[395053029,1764378649276,-500.0,0.00014901,2]
[395053030,1764378649285,-500.0,0.00014901,2]
[395053031,1764378649294,-500.0,0.00014901,2]
[395053032,1764378649303,-500.0,0.00014901,2]
[395053033,1764378649312,-500.0,0.00014901,2]
[395053034,1764378649322,-1254.18,0.00014901,2]
[395053035,1764378649331,-1000.0,0.00014901,2]
[395053036,1764378649339,-500.0,0.00014901,2]
[395053037,1764378649348,-500.0,0.00014901,2]
[395053038,1764378649357,-500.0,0.00014901,2]
[395053039,1764378649366,-500.0,0.00014901,2]
[395053040,1764378649376,-500.0,0.00014901,2]
[395053041,1764378649385,-500.0,0.00014901,2]
[395053042,1764378649394,-500.0,0.00014901,2]
[395053043,1764378649404,-500.0,0.00014901,2]
[395053044,1764378649428,-563.73,0.00014901,2]
[395053045,1764378649437,-500.0,0.00014901,2]
[395053046,1764378649445,-500.0,0.00014901,2]
[395053047,1764378649454,-500.0,0.00014901,2]
[395053048,1764378649463,-500.0,0.00014901,2]
[395053049,1764378649474,-500.0,0.00014901,2]
[395053050,1764378649482,-500.0,0.00014901,2]
[395053051,1764378649491,-678.76,0.00014901,2]
[395053052,1764378649501,-500.0,0.00014901,2]
[395053053,1764378649510,-500.0,0.00014901,2]
[395053054,1764378649521,-500.0,0.00014901,2]
[395053055,1764378649530,-500.0,0.00014901,2]
[395053056,1764378649539,-500.0,0.00014901,2]
[395053057,1764378649549,-500.0,0.00014901,2]
[395053058,1764378649558,-500.0,0.00014901,2]
[395053059,1764378649566,-500.0,0.00014901,2]
[395053060,1764378649575,-500.0,0.00014901,2]
[395053061,1764378649584,-559.5,0.00014901,2]
[395053062,1764378649594,-500.0,0.00014901,2]
[395053063,1764378649603,-500.0,0.00014901,2]
[395053064,1764378649612,-500.0,0.00014901,2]
[395053065,1764378649621,-500.0,0.00014901,2]
[395053066,1764378649629,-500.0,0.00014901,2]
[395053067,1764378649638,-500.0,0.00014901,2]
[395053068,1764378649647,-500.0,0.00014901,2]
[395053069,1764378649656,-500.0,0.00014901,2]
[395053070,1764378649665,-500.0,0.00014901,2]
[395053071,1764378649674,-500.0,0.00014901,2]
[395053072,1764378649683,-500.0,0.00014901,2]
[395053073,1764378649691,-500.0,0.00014901,2]
[395053074,1764378649700,-500.0,0.00014901,2]
[395053075,1764378649710,-500.0,0.00014901,2]
[395053076,1764378649719,-500.0,0.00014901,2]
[395053077,1764378649728,-141.14783457,0.00014901,2]
[395053078,1764378649743,-358.85216543,0.00014901,2]
[395053079,1764378649752,-500.0,0.00014901,2]
[395053080,1764378649761,-1012.58,0.00014901,2]
[395053081,1764378649770,-500.0,0.00014901,2]
[395053082,1764378649780,-539.34,0.00014901,2]
[395053083,1764378649789,-500.0,0.00014901,2]
[395053084,1764378649798,-500.0,0.00014901,2]
[395053085,1764378649807,-500.0,0.00014901,2]
[395053086,1764378649816,-500.0,0.00014901,2]
[395053087,1764378649825,-500.0,0.00014901,2]
[395053088,1764378649834,-500.0,0.00014901,2]
[395053089,1764378649842,-500.0,0.00014901,2]
[395053090,1764378649851,-500.0,0.00014901,2]
[395053091,1764378649860,-617.04,0.00014901,2]
[395053092,1764378649868,-500.0,0.00014901,2]
[395053093,1764378649877,-848.06,0.00014901,2]
[395053094,1764378649887,-202.65163108,0.00014901,2]
[395053095,1764378649896,-622.13,0.00014901,2]
[395053096,1764378649905,-500.0,0.00014901,2]
[395053097,1764378649913,-500.0,0.00014901,2]
[395053098,1764378649922,-500.0,0.00014901,2]
[395053099,1764378649931,-500.0,0.00014901,2]
[395053100,1764378649940,-500.0,0.00014901,2]
[395053101,1764378649948,-500.0,0.00014901,2]
[395053102,1764378649957,-500.0,0.00014901,2]
[395053103,1764378649965,-500.0,0.00014901,2]
[395053104,1764378649976,-500.0,0.00014901,2]
[395053105,1764378649984,-500.0,0.00014901,2]
[395053106,1764378649993,-500.0,0.00014901,2]
[395053107,1764378650001,-500.0,0.00014901,2]
[395053108,1764378650010,-500.0,0.00014901,2]
[395053109,1764378650021,-500.0,0.00014901,2]
[395053110,1764378650029,-500.0,0.00014901,2]
[395053111,1764378650038,-500.0,0.00014901,2]
[395053112,1764378650047,-500.0,0.00014901,2]
[395053113,1764378650058,-500.0,0.00014901,2]
[395053114,1764378650067,-209.40437684,0.00014982,2]
[395053115,1764378650076,-500.0,0.00014987,2]
[395053116,1764378650085,-500.0,0.00014987,2]
[395053117,1764378650094,-500.0,0.00014987,2]
[395053118,1764378650103,-500.0,0.00014987,2]
[395053119,1764378650111,-500.0,0.00014987,2]
[395053120,1764378650120,-454.27747087,0.00014987,2]
[395053121,1764378650129,-528.86,0.00014987,2]
[395053122,1764378650138,-500.0,0.00014987,2]
[395053123,1764378650147,-291.40567598,0.00014987,2]
[395053124,1764378650156,-500.0,0.00014987,2]
[395053125,1764378650164,-609.39,0.00014987,2]
[395053126,1764378650174,-500.0,0.00014987,2]
[395053127,1764378650182,-505.17,0.00014987,2]
[395053128,1764378650190,-500.0,0.00014987,2]
[395053129,1764378650199,-500.0,0.00014987,2]
[395053130,1764378650207,-500.0,0.00014987,2]
[395053131,1764378650216,-500.0,0.00014987,2]
[395053132,1764378650225,-500.0,0.00014987,2]
[395053133,1764378650233,-500.0,0.00014987,2]
[395053134,1764378650242,-500.0,0.00014987,2]
[395053135,1764378650250,-500.0,0.00014987,2]
[395053136,1764378650259,-500.0,0.00014987,2]
[395053137,1764378650268,-500.0,0.00014987,2]
[395053138,1764378650277,-500.0,0.00014987,2]
[395053139,1764378650286,-576.27,0.00014987,2]
[395053140,1764378650294,-504.28678069,0.00014987,2]
[395053141,1764378650304,-500.0,0.00014987,2]
[395053142,1764378650312,-500.0,0.00014987,2]
[395053143,1764378650321,-500.0,0.00014987,2]
[395053144,1764378650329,-500.0,0.00014987,2]
[395053145,1764378650338,-500.0,0.00014987,2]
[395053146,1764378650346,-500.0,0.00014987,2]
[395053147,1764378650355,-500.0,0.00014987,2]
[395053148,1764378650364,-505.89816113,0.00014987,2]
[395053149,1764378650372,-500.0,0.00014987,2]
[395053150,1764378650381,-500.0,0.00014987,2]
[395053151,1764378650390,-500.0,0.00014987,2]
[395053152,1764378650399,-502.75,0.00014987,2]
[395053153,1764378650408,-500.0,0.00014987,2]
[395053154,1764378650417,-407.25507918,0.0001499,2]
[395053155,1764378650425,-500.0,0.0001499,2]
[395053156,1764378650434,-500.0,0.0001499,2]
[395053157,1764378650442,-505.2,0.0001499,2]
[395053158,1764378650451,-500.0,0.0001499,2]
[395053159,1764378650459,-1811.15,0.0001499,2]
[395053160,1764378650468,-500.0,0.0001499,2]
[395053161,1764378650476,-500.0,0.0001499,2]
[395053162,1764378650485,-500.0,0.0001499,2]
[395053163,1764378650494,-500.0,0.0001499,2]
[395053164,1764378650502,-500.0,0.0001499,2]
[395053165,1764378650511,-500.0,0.0001499,2]
[395053166,1764378650520,-500.0,0.0001499,2]
[395053167,1764378650529,-500.0,0.0001499,2]
[395053168,1764378650537,-1310.65,0.0001499,2]
[395053169,1764378650547,-500.0,0.0001499,2]
[395053170,1764378650556,-500.0,0.0001499,2]
[395053171,1764378650565,-780.85,0.0001499,2]
[395053172,1764378650574,-500.0,0.0001499,2]
[395053173,1764378650583,-500.0,0.0001499,2]
[395053174,1764378650592,-500.0,0.0001499,2]
[395053175,1764378650601,-506.32,0.0001499,2]
[395053176,1764378650610,-500.0,0.0001499,2]
[395053177,1764378650619,-576.76,0.0001499,2]
[395053178,1764378650629,-500.0,0.0001499,2]
[395053179,1764378650637,-661.43,0.0001499,2]
[395053180,1764378650647,-500.0,0.0001499,2]
[395053181,1764378650657,-500.0,0.0001499,2]
[395053182,1764378650666,-978.99,0.0001499,2]
[395053183,1764378650676,-1022.02,0.0001499,2]
[395053184,1764378650685,-867.18,0.0001499,2]
[395053185,1764378650694,-1686.8,0.0001499,2]
[395053186,1764378650704,-991.35,0.0001499,2]
[395053187,1764378650713,-500.0,0.0001499,2]
[395053188,1764378650722,-566.82,0.0001499,2]
[395053189,1764378650731,-2134.08,0.0001499,2]
[395053190,1764378650740,-500.0,0.0001499,2]
[395053191,1764378650749,-543.24,0.0001499,2]
[395053192,1764378650758,-511.33,0.0001499,2]
[395053193,1764378650767,-178.69660314,0.0001499,2]
[395053194,1764378650776,-500.0,0.0001499,2]
[395053195,1764378650785,-500.0,0.0001499,2]
[395053196,1764378650794,-500.0,0.0001499,2]
[395053197,1764378650804,-500.0,0.0001499,2]
[395053198,1764378650813,-500.0,0.0001499,2]
[395053199,1764378650823,-4790.34,0.0001499,2]
[395053200,1764378650833,-521.33,0.0001499,2]
[395053201,1764378650842,-555.56,0.0001499,2]
[395053202,1764378650852,-1763.09,0.0001499,2]
[395053203,1764378650861,-500.0,0.0001499,2]
[395053204,1764378650870,-500.0,0.0001499,2]
[395053205,1764378650880,-500.0,0.0001499,2]
[395053206,1764378650890,-1386.0,0.0001499,2]
[395053207,1764378650899,-1116.76,0.0001499,2]
[395053208,1764378650909,-500.0,0.0001499,2]
[395053209,1764378650918,-500.0,0.0001499,2]
[395053210,1764378650928,-500.0,0.0001499,2]
[395053211,1764378650937,-929.75,0.0001499,2]
[395053212,1764378650946,-371.71007095,0.0001499,2]
[395053213,1764378650955,-311.99850263,0.0001499,2]
[395053214,1764378650964,-500.0,0.0001499,2]
[395053215,1764378650974,-500.0,0.0001499,2]
[395053216,1764378650984,-500.0,0.0001499,2]
[395053217,1764378650996,-3006.88,0.0001499,2]
[395053218,1764378651007,-630.14,0.0001499,2]
[395053219,1764378651016,-832.79,0.0001499,2]
[395053220,1764378651027,-500.0,0.0001499,2]
[395053221,1764378651037,-1604.37,0.0001499,2]
[395053222,1764378651046,-586.28,0.0001499,2]
[395053223,1764378651056,-632.87,0.0001499,2]
[395053224,1764378651067,-500.0,0.0001499,2]
[395053225,1764378651076,-519.86,0.0001499,2]
[395053226,1764378651085,-500.0,0.0001499,2]
[395053227,1764378651095,-500.0,0.0001499,2]
[395053228,1764378651104,-500.0,0.0001499,2]
[395053229,1764378651114,-500.0,0.0001499,2]
[395053230,1764378651123,-500.0,0.0001499,2]
[395053231,1764378651132,-500.0,0.0001499,2]
[395053232,1764378651141,-2032.64,0.00014991,2]
[395053233,1764378651150,-544.9,0.00014991,2]
[395053234,1764378651160,-500.0,0.00014991,2]
[395053235,1764378651171,-727.34,0.00014991,2]
[395053236,1764378651181,-1043.92,0.00014991,2]
[395053237,1764378651191,-2586.27,0.00014991,2]
[395053238,1764378651201,-500.0,0.00014991,2]
[395053239,1764378651209,-507.27,0.00014991,2]
[395053240,1764378651218,-1599.63,0.00014991,2]
[395053241,1764378651227,-2567.39,0.00014991,2]
[395053242,1764378651236,-880.86,0.00014991,2]
[395053243,1764378651244,-2691.59,0.00014991,2]
[395053244,1764378651253,-500.0,0.00014991,2]
[395053245,1764378651263,-500.0,0.00014991,2]
[395053246,1764378651274,-923.6,0.00014991,2]
[395053247,1764378651284,-2830.89,0.00014991,2]
[395053248,1764378651295,-389.0,0.0001501,2]
[395053249,1764378651304,-500.0,0.00015042,2]
[395053250,1764378651313,-1879.78,0.00015068,2]
[395053251,1764378651322,-155.03737655,0.00015068,2]
[395053252,1764378651331,-774.53,0.00015068,2]
[395053253,1764378651340,-1101.68,0.00015068,2]
[395053254,1764378651349,-500.0,0.00015068,2]
[395053255,1764378651358,-2809.09,0.00015068,2]
[395053256,1764378651367,-500.0,0.00015068,2]
[395053257,1764378651376,-643.87,0.00015068,2]
[395053258,1764378651385,-769.9,0.00015068,2]
[395053259,1764378651394,-2592.08,0.00015068,2]
[395053260,1764378651403,-1399.92,0.00015068,2]
[395053261,1764378651412,-1840.63,0.00015068,2]
[395053262,1764378651421,-500.0,0.00015068,2]
[395053263,1764378651430,-2314.46,0.00015068,2]
[395053264,1764378651440,-4085.32,0.00015068,2]
[395053265,1764378651449,-1061.31,0.00015068,2]
[395053266,1764378651458,-500.0,0.00015068,2]
[395053267,1764378651468,-500.0,0.00015068,2]
[395053268,1764378651477,-1816.47,0.00015068,2]